lending/lending_fUSD_20250621
["ID","MTS","AMOUNT","RATE_DAILY","PERIOD"]
[366812372,1750467101106,-502.76,0.00027397,2]
[366812373,1750467101116,-178.32,0.00027397,80]
[366812374,1750467101126,-219.87933749,0.00027397,2]
[366812375,1750467101135,-700.0,0.00027397,2]
[366812376,1750467101145,-1200.0,0.000274,2]
[366812377,1750467101154,-650.0,0.000274,2]
[366812378,1750467101163,-500.0,0.000274,2]
[366812379,1750467101173,-187.3,0.0002742,2]
[366812380,1750467101182,-500.0,0.00027424,2]
[366812381,1750467101192,-500.0,0.00027452,2]
[366812382,1750467101202,-151.0,0.00027452,7]
[366812383,1750467101211,-500.0,0.00027479,2]
[366812384,1750467101221,-168.0,0.00027489,2]
[366812385,1750467101230,-7234.47,0.000275,2]
[366812386,1750467101240,-195.01071256,0.000275,2]
[366812387,1750467101249,-532.64039982,0.000275,2]
[366812388,1750467101259,-206.24513,0.000275,7]
[366812389,1750467101268,-206.245134,0.000275,7]
[366812390,1750467101278,-466.108384,0.000275,7]
[366812391,1750467101287,-466.108376,0.000275,7]
[366812392,1750467101302,-2500.0,0.000275,2]
[366812393,1750467101312,-500.0,0.00027507,2]
[366812394,1750467101322,-171.52363058,0.00027507,30]
[366812395,1750467101331,-1452.68655747,0.00027521,17]
[366812396,1750467101341,-500.0,0.00027534,2]
[366812397,1750467101351,-500.0,0.00027561,2]
[366812398,1750467101360,-500.0,0.00027589,2]
[366812399,1750467101370,-173.01334361,0.00027605,2]
[366812400,1750467101380,-217.55659999,0.00027616,2]
[366812401,1750467101389,-280.11,0.00027639,2]
[366812402,1750467101399,-10752.2787683,0.00027652,2]
[366812403,1750467101409,-178883.4202756,0.00027662,2]
[366812404,1750467101418,-152.0,0.00027666,12]
[366812405,1750467101428,-213.133419,0.00027671,7]
[366812406,1750467101437,-490.0,0.00027671,4]
[366812407,1750467101447,-490.0,0.00027671,4]
[366812408,1750467101457,-387.64,0.00027671,4]
[366812409,1750467101467,-490.0,0.00027671,4]
[366812410,1750467101477,-490.0,0.00027671,4]
[366812411,1750467101486,-490.0,0.00027671,4]
[366812412,1750467101495,-490.0,0.00027671,4]
[366812413,1750467101505,-499.03,0.00027671,4]
[366812414,1750467101515,-490.0,0.00027671,4]
[366812415,1750467101525,-490.0,0.00027671,4]
[366812416,1750467101534,-302.90246082,0.00027671,4]
[366812417,1750467101544,-490.0,0.00027671,4]
[366812418,1750467101554,-490.0,0.00027671,4]
[366812419,1750467101563,-490.0,0.00027671,4]
[366812420,1750467101574,-490.0,0.00027671,4]
[366812421,1750467101583,-490.0,0.00027671,4]
[366812422,1750467101593,-322.05878364,0.00027671,4]
[366812423,1750467101603,-490.0,0.00027671,4]
[366812424,1750467101613,-490.0,0.00027671,4]
[366812425,1750467101623,-284.81665091,0.00027671,4]
[366812426,1750467101632,-640.8,0.00027671,4]
[366812427,1750467101642,-490.0,0.00027671,4]
[366812428,1750467101652,-490.0,0.00027671,4]
[366812429,1750467101662,-490.0,0.00027671,4]
[366812430,1750467101671,-177.27731936,0.00027671,4]
[366812431,1750467101682,-991.7,0.00027671,4]
[366812432,1750467101692,-490.0,0.00027671,4]
[366812433,1750467101702,-490.0,0.00027671,4]
[366812434,1750467101712,-626.41465558,0.00027671,4]
[366812435,1750467101722,-506.13,0.00027671,4]
[366812436,1750467101732,-490.0,0.00027671,4]
[366812437,1750467101742,-490.0,0.00027671,4]
[366812438,1750467101752,-490.0,0.00027671,4]
[366812439,1750467101762,-364.13,0.00027671,4]
[366812440,1750467101772,-533.68342606,0.00027671,4]
[366812441,1750467101781,-490.0,0.00027671,4]
[366812442,1750467101791,-490.0,0.00027671,4]
[366812443,1750467101801,-490.0,0.00027671,4]
[366812444,1750467101811,-569.52,0.00027671,4]
[366812445,1750467101821,-490.0,0.00027671,4]
[366812446,1750467101831,-584.42,0.00027671,4]
[366812447,1750467101841,-490.0,0.00027671,4]
[366812448,1750467101851,-490.0,0.00027671,4]
[366812449,1750467101861,-828.07,0.00027671,4]
[366812450,1750467101871,-490.0,0.00027671,4]
[366812451,1750467101881,-490.0,0.00027671,4]
[366812452,1750467101891,-490.0,0.00027671,4]
[366812453,1750467101901,-490.0,0.00027671,4]
[366812454,1750467101911,-282.62,0.00027671,4]
[366812455,1750467101922,-529.54,0.00027671,4]
[366812456,1750467101932,-490.0,0.00027671,4]
[366812457,1750467101941,-490.0,0.00027671,4]
[366812458,1750467101952,-627.92,0.00027671,4]
[366812459,1750467101962,-490.0,0.00027671,4]
[366812460,1750467101971,-490.0,0.00027671,4]
[366812461,1750467101981,-490.0,0.00027671,4]
[366812462,1750467101991,-495.85265821,0.00027671,4]
[366812463,1750467102000,-490.0,0.00027671,4]
[366812464,1750467102009,-490.0,0.00027671,4]
[366812465,1750467102019,-638.18,0.00027671,4]
[366812466,1750467102202,-490.0,0.00027671,4]
[366812467,1750467102212,-490.0,0.00027671,4]
[366812468,1750467102222,-518.34,0.00027671,4]
[366812469,1750467102232,-490.0,0.00027671,4]
[366812470,1750467102242,-490.0,0.00027671,4]
[366812471,1750467102252,-490.0,0.00027671,4]
[366812472,1750467102262,-490.0,0.00027671,4]
[366812473,1750467102272,-490.0,0.00027671,4]
[366812474,1750467102281,-490.0,0.00027671,4]
[366812475,1750467102291,-572.72,0.00027671,4]
[366812476,1750467102304,-490.0,0.00027671,4]
[366812477,1750467102314,-490.0,0.00027671,4]
[366812478,1750467102323,-250.0,0.00027671,4]
[366812479,1750467102334,-588.98,0.00027671,4]
[366812480,1750467102344,-490.0,0.00027671,4]
[366812481,1750467102353,-490.0,0.00027671,4]
[366812482,1750467102363,-357.1655022,0.00027671,4]
[366812483,1750467102374,-693.05,0.00027671,4]
[366812484,1750467102384,-679.07,0.00027671,4]
[366812485,1750467102394,-394.29369243,0.00027671,4]
[366812486,1750467102404,-501.35,0.00027671,4]
[366812487,1750467102414,-490.0,0.00027671,4]
[366812488,1750467102424,-1011.08,0.00027671,4]
[366812489,1750467102434,-490.0,0.00027671,4]
[366812490,1750467102443,-495.64088137,0.00027671,4]
[366812491,1750467102454,-1710.27,0.00027671,4]
[366812492,1750467102464,-490.0,0.00027671,4]
[366812493,1750467102473,-490.0,0.00027671,4]
[366812494,1750467102482,-490.0,0.00027671,4]
[366812495,1750467102492,-490.0,0.00027671,4]
[366812496,1750467102501,-490.0,0.00027671,4]
[366812497,1750467102510,-490.0,0.00027671,4]
[366812498,1750467102519,-675.57,0.00027671,4]
[366812499,1750467102529,-573.37,0.00027671,4]
[366812500,1750467102539,-490.0,0.00027671,4]
[366812501,1750467102548,-1566.91,0.00027671,4]
[366812502,1750467102558,-2807.96,0.00027671,2]
[366812503,1750467102567,-538.28170876,0.00027671,4]
[366812504,1750467102577,-490.0,0.00027671,4]
[366812505,1750467102586,-490.0,0.00027671,4]
[366812506,1750467102595,-573.81,0.00027671,4]
[366812507,1750467102605,-414.0,0.00027671,4]
[366812508,1750467102615,-3259.78,0.00027671,4]
[366812509,1750467102625,-490.0,0.00027671,4]
[366812510,1750467102635,-490.0,0.00027671,4]
[366812511,1750467102645,-213.7074566,0.00027671,4]
[366812512,1750467102654,-648.85,0.00027671,4]
[366812513,1750467102664,-1017.95,0.00027671,4]
[366812514,1750467102673,-521.19005671,0.00027671,4]
[366812515,1750467102683,-838.54,0.00027671,4]
[366812516,1750467102692,-1010.41,0.00027671,4]
[366812517,1750467102701,-561.12,0.00027671,4]
[366812518,1750467102711,-490.0,0.00027671,4]
[366812519,1750467102721,-490.0,0.00027671,4]
[366812520,1750467102731,-490.0,0.00027671,4]
[366812521,1750467102740,-490.0,0.00027671,4]
[366812522,1750467102750,-490.0,0.00027671,4]
[366812523,1750467102759,-7664.92,0.00027671,4]
[366812524,1750467102769,-490.0,0.00027671,4]
[366812525,1750467102778,-535.72,0.00027671,4]
[366812526,1750467102787,-490.0,0.00027671,4]
[366812527,1750467102797,-643.42,0.00027671,4]
[366812528,1750467102807,-490.0,0.00027671,4]
[366812529,1750467102816,-490.0,0.00027671,4]
[366812530,1750467102825,-740.37,0.00027671,4]
[366812531,1750467102835,-666.48,0.00027671,4]
[366812532,1750467102846,-1402.81,0.00027671,4]
[366812533,1750467102855,-1928.49,0.00027671,4]
[366812534,1750467102865,-490.0,0.00027671,4]
[366812535,1750467102875,-167.02948425,0.00027671,4]
[366812536,1750467102884,-490.0,0.00027671,4]
[366812537,1750467102894,-875.93,0.00027671,4]
[366812538,1750467102904,-490.0,0.00027671,4]
[366812539,1750467102913,-575.61,0.00027671,4]
[366812540,1750467102923,-2680.72,0.00027671,4]
[366812541,1750467102932,-490.0,0.00027671,4]
[366812542,1750467102942,-1148.65,0.00027671,4]
[366812543,1750467102951,-499.47,0.00027671,4]
[366812544,1750467102961,-585.26,0.00027671,4]
[366812545,1750467102970,-506.05,0.00027671,4]
[366812546,1750467102979,-755.96,0.00027671,4]
[366812547,1750467102989,-5788.94,0.00027671,4]
[366812548,1750467102998,-979.05,0.00027671,4]
[366812549,1750467103008,-506.47377689,0.00027671,4]
[366812550,1750467103017,-1714.67,0.00027671,4]
[366812551,1750467103027,-1056.73,0.00027671,4]
[366812552,1750467103036,-703.48,0.00027671,4]
[366812553,1750467103046,-490.0,0.00027671,4]
[366812554,1750467103056,-1389.72,0.00027671,4]
[366812555,1750467103065,-490.0,0.00027671,4]
[366812556,1750467103075,-490.0,0.00027671,4]
[366812557,1750467103084,-490.0,0.00027671,4]
[366812558,1750467103093,-490.0,0.00027671,4]
[366812559,1750467103103,-490.0,0.00027671,4]
[366812560,1750467103113,-307.21145376,0.00027671,4]
[366812561,1750467103122,-778.17,0.00027671,4]
[366812562,1750467103132,-1748.79,0.00027671,4]
[366812563,1750467103141,-490.0,0.00027671,4]
[366812564,1750467103151,-490.0,0.00027671,4]
[366812565,1750467103160,-567.41,0.00027671,4]
[366812566,1750467103169,-490.0,0.00027671,4]
[366812567,1750467103180,-1625.6,0.00027671,4]
[366812568,1750467103189,-490.0,0.00027671,4]
[366812569,1750467103199,-490.0,0.00027671,4]
[366812570,1750467103208,-490.0,0.00027671,4]
[366812571,1750467103219,-513.0,0.00027671,4]
[366812572,1750467103229,-875.48,0.00027671,4]
[366812573,1750467103239,-2895.02,0.00027671,4]
[366812574,1750467103249,-262.40498726,0.00027671,4]
[366812575,1750467103259,-490.0,0.00027671,4]
[366812576,1750467103268,-490.0,0.00027671,4]
[366812577,1750467103278,-1070.55,0.00027671,4]
[366812578,1750467103288,-490.0,0.00027671,4]
[366812579,1750467103301,-490.0,0.00027671,4]
[366812580,1750467103311,-490.0,0.00027671,4]
[366812581,1750467103321,-490.0,0.00027671,4]
[366812582,1750467103330,-1435.61,0.00027671,4]
[366812583,1750467103340,-874.16,0.00027671,4]
[366812584,1750467103350,-630.58,0.00027671,4]
[366812585,1750467103360,-490.0,0.00027671,4]
[366812586,1750467103370,-490.0,0.00027671,4]
[366812587,1750467103379,-2562.11,0.00027671,2]
[366812588,1750467103389,-490.0,0.00027671,4]
[366812589,1750467103398,-490.0,0.00027671,4]
[366812590,1750467103408,-490.0,0.00027671,4]
[366812591,1750467103418,-490.0,0.00027671,4]
[366812592,1750467103429,-1288.18,0.00027671,4]
[366812593,1750467103439,-490.0,0.00027671,4]
[366812594,1750467103449,-490.0,0.00027671,4]
[366812595,1750467103459,-490.0,0.00027671,4]
[366812596,1750467103470,-817.53,0.00027671,4]
[366812597,1750467103480,-490.0,0.00027671,4]
[366812598,1750467103489,-490.0,0.00027671,4]
[366812599,1750467103499,-1310.38,0.00027671,2]
[366812600,1750467103509,-1069.86,0.00027671,4]
[366812601,1750467103518,-490.0,0.00027671,4]
[366812602,1750467103528,-490.0,0.00027671,4]
[366812603,1750467103537,-490.0,0.00027671,4]
[366812604,1750467103548,-490.0,0.00027671,4]
[366812605,1750467103558,-525.89,0.00027671,4]
[366812606,1750467103568,-180.1,0.00027671,4]
[366812607,1750467103578,-622.86,0.00027671,4]
[366812608,1750467103589,-800.28,0.00027671,4]
[366812609,1750467103598,-490.0,0.00027671,4]
[366812610,1750467103617,-6777.8835623,0.00027681,2]
[366812611,1750467103627,-150.0,0.00027699,2]
[366812612,1750467103638,-74662.35,0.000277,7]
[366812613,1750467103648,-5024.63130182,0.000277,2]
[366812614,1750467103658,-151.0,0.000277,7]
[366812615,1750467103668,-169.551605,0.000277,7]
[366812616,1750467103679,-169.551605,0.000277,7]
[366812617,1750467103689,-151.0,0.000277,7]
[366812618,1750467103698,-254.117717,0.000277,7]
[366812619,1750467103708,-660.470074,0.000277,7]
[366812620,1750467103718,-660.470074,0.000277,7]
[366812621,1750467103727,-326.462005,0.000277,7]
[366812622,1750467103737,-326.462005,0.000277,7]
[366812623,1750467103747,-151.0,0.000277,7]
[366812624,1750467103756,-500.0,0.000277,30]
[366812625,1750467103766,-500.0,0.000277,30]
[366812626,1750467103776,-500.0,0.000277,30]
[366812627,1750467103786,-501.17741119,0.000277,30]
[366812628,1750467103796,-500.0,0.000277,30]
[366812629,1750467103806,-337.57394271,0.000277,30]
[366812630,1750467103816,-519.5929367,0.000277,30]
[366812631,1750467103826,-500.0,0.000277,30]
[366812632,1750467103835,-500.0,0.000277,30]
[366812633,1750467103845,-500.0,0.000277,30]
[366812634,1750467103855,-248.02631311,0.000277,30]
[366812635,1750467103865,-500.0,0.000277,30]
[366812636,1750467103875,-161.88941425,0.000277,30]
[366812637,1750467103884,-3414.33,0.000277,2]
[366812638,1750467103894,-702.52761667,0.00027712,5]
[366812639,1750467103905,-1259.85360974,0.00027712,5]
[366812640,1750467103915,-3000.0,0.00027712,5]
[366812641,1750467103925,-2000.0,0.00027779,60]
[366812642,1750467103935,-2110.0,0.0002778,2]
[366812643,1750467103944,-166.72,0.00027832,2]
[366812644,1750467103954,-168.0,0.00027833,2]
[366812645,1750467103964,-227.84825161,0.00027842,2]
[366812646,1750467103973,-1221.0,0.00027888,7]
[366812647,1750467103983,-168.0,0.00027898,2]
[366812648,1750467103992,-13687.34718054,0.000279,2]
[366812649,1750467104002,-13687.34718047,0.000279,2]
[366812650,1750467104011,-13687.34718047,0.000279,2]
[366812651,1750467104021,-490.0,0.00027945,4]
[366812652,1750467104031,-490.0,0.00027945,4]
[366812653,1750467104040,-605.00570805,0.00027945,4]
[366812654,1750467104050,-490.0,0.00027945,4]
[366812655,1750467104059,-490.0,0.00027945,4]
[366812656,1750467104069,-307.74971231,0.00027945,4]
[366812657,1750467104078,-499.03,0.00027945,4]
[366812658,1750467104088,-431.15,0.00027945,4]
[366812659,1750467104098,-406.84509694,0.00027945,4]
[366812660,1750467104108,-490.0,0.00027945,4]
[366812661,1750467104118,-490.0,0.00027945,4]
[366812662,1750467104129,-490.0,0.00027945,4]
[366812663,1750467104139,-490.0,0.00027945,4]
[366812664,1750467104149,-373.48491363,0.00027945,4]
[366812665,1750467104158,-490.0,0.00027945,4]
[366812666,1750467104168,-490.0,0.00027945,4]
[366812667,1750467104178,-640.8,0.00027945,4]
[366812668,1750467104187,-490.0,0.00027945,4]
[366812669,1750467104197,-490.0,0.00027945,4]
[366812670,1750467104207,-490.0,0.00027945,4]
[366812671,1750467104217,-991.7,0.00027945,4]
[366812672,1750467104227,-490.0,0.00027945,4]
[366812673,1750467104237,-490.0,0.00027945,4]
[366812674,1750467104247,-506.13,0.00027945,4]
[366812675,1750467104257,-490.0,0.00027945,4]
[366812676,1750467104267,-490.0,0.00027945,4]
[366812677,1750467104277,-189.51937638,0.00027945,4]
[366812678,1750467104286,-490.0,0.00027945,4]
[366812679,1750467104300,-490.0,0.00027945,4]
[366812680,1750467104310,-490.0,0.00027945,4]
[366812681,1750467104319,-569.52,0.00027945,4]
[366812682,1750467104329,-490.0,0.00027945,4]
[366812683,1750467104339,-490.0,0.00027945,4]
[366812684,1750467104348,-490.0,0.00027945,4]
[366812685,1750467104358,-828.07,0.00027945,4]
[366812686,1750467104368,-490.0,0.00027945,4]
[366812687,1750467104378,-490.0,0.00027945,4]
[366812688,1750467104387,-490.0,0.00027945,4]
[366812689,1750467104398,-490.0,0.00027945,4]
[366812690,1750467104408,-529.54,0.00027945,4]
[366812691,1750467104417,-490.0,0.00027945,4]
[366812692,1750467104427,-490.0,0.00027945,4]
[366812693,1750467104436,-627.92,0.00027945,4]
[366812694,1750467104446,-490.0,0.00027945,4]
[366812695,1750467104456,-196.06391954,0.00027945,4]
[366812696,1750467104467,-467.29,0.00027945,4]
[366812697,1750467104478,-490.0,0.00027945,4]
[366812698,1750467104489,-490.0,0.00027945,4]
[366812699,1750467104500,-638.18,0.00027945,4]
[366812700,1750467104511,-490.0,0.00027945,4]
[366812701,1750467104520,-490.0,0.00027945,4]
[366812702,1750467104532,-518.34,0.00027945,4]
[366812703,1750467104543,-490.0,0.00027945,4]
[366812704,1750467104553,-490.0,0.00027945,4]
[366812705,1750467104563,-490.0,0.00027945,4]
[366812706,1750467104574,-490.0,0.00027945,4]
[366812707,1750467104583,-490.0,0.00027945,4]
[366812708,1750467104593,-490.0,0.00027945,4]
[366812709,1750467104602,-572.72,0.00027945,4]
[366812710,1750467104612,-171.41721427,0.00027945,4]
[366812711,1750467104622,-368.83364932,0.00027945,4]
[366812712,1750467104632,-178.62559265,0.00027945,4]
[366812713,1750467104641,-490.0,0.00027945,4]
[366812714,1750467104652,-231.65,0.00027945,4]
[366812715,1750467104662,-693.05,0.00027945,4]
[366812716,1750467104671,-679.07,0.00027945,4]
[366812717,1750467104681,-501.35,0.00027945,4]
[366812718,1750467104691,-490.0,0.00027945,4]
[366812719,1750467104701,-1011.08,0.00027945,4]
[366812720,1750467104856,-390.52,0.00027945,4]
[366812721,1750467104884,-1710.27,0.00027945,4]
[366812722,1750467104895,-490.0,0.00027945,4]
[366812723,1750467104905,-355.77208077,0.00027945,4]
[366812724,1750467104915,-490.0,0.00027945,4]
[366812725,1750467104925,-490.0,0.00027945,4]
[366812726,1750467104935,-490.0,0.00027945,4]
[366812727,1750467104944,-490.0,0.00027945,4]
[366812728,1750467104954,-675.57,0.00027945,4]
[366812729,1750467104964,-573.37,0.00027945,4]
[366812730,1750467104974,-490.0,0.00027945,4]
[366812731,1750467104983,-1566.91,0.00027945,4]
[366812732,1750467104993,-2807.96,0.00027945,2]
[366812733,1750467105002,-490.0,0.00027945,4]
[366812734,1750467105012,-490.0,0.00027945,4]
[366812735,1750467105022,-573.81,0.00027945,4]
[366812736,1750467105032,-3259.78,0.00027945,4]
[366812737,1750467105042,-490.0,0.00027945,4]
[366812738,1750467105053,-490.0,0.00027945,4]
[366812739,1750467105062,-648.85,0.00027945,4]
[366812740,1750467105072,-1017.95,0.00027945,4]
[366812741,1750467105081,-1010.41,0.00027945,4]
[366812742,1750467105091,-838.54,0.00027945,4]
[366812743,1750467105100,-561.12,0.00027945,4]
[366812744,1750467105110,-313.2301291,0.00027945,4]
[366812745,1750467105120,-490.0,0.00027945,4]
[366812746,1750467105130,-490.0,0.00027945,4]
[366812747,1750467105139,-490.0,0.00027945,4]
[366812748,1750467105149,-490.0,0.00027945,4]
[366812749,1750467105158,-7664.92,0.00027945,4]
[366812750,1750467105168,-423.52,0.00027945,4]
[366812751,1750467105177,-535.72,0.00027945,4]
[366812752,1750467105186,-490.0,0.00027945,4]
[366812753,1750467105196,-643.42,0.00027945,4]
[366812754,1750467105206,-490.0,0.00027945,4]
[366812755,1750467105215,-490.0,0.00027945,4]
[366812756,1750467105225,-740.37,0.00027945,4]
[366812757,1750467105235,-666.48,0.00027945,4]
[366812758,1750467105245,-1402.81,0.00027945,4]
[366812759,1750467105255,-1928.49,0.00027945,4]
[366812760,1750467105265,-490.0,0.00027945,4]
[366812761,1750467105275,-490.0,0.00027945,4]
[366812762,1750467105284,-875.93,0.00027945,4]
[366812763,1750467105296,-490.0,0.00027945,4]
[366812764,1750467105305,-575.61,0.00027945,4]
[366812765,1750467105315,-2680.72,0.00027945,4]
[366812766,1750467105325,-490.0,0.00027945,4]
[366812767,1750467105335,-1148.65,0.00027945,4]
[366812768,1750467105345,-499.47,0.00027945,4]
[366812769,1750467105356,-585.26,0.00027945,4]
[366812770,1750467105366,-506.05,0.00027945,4]
[366812771,1750467105376,-755.96,0.00027945,4]
[366812772,1750467105386,-5788.94,0.00027945,4]
[366812773,1750467105395,-979.05,0.00027945,4]
[366812774,1750467105405,-1714.67,0.00027945,4]
[366812775,1750467105415,-1056.73,0.00027945,4]
[366812776,1750467105425,-703.48,0.00027945,4]
[366812777,1750467105434,-441.10076228,0.00027945,4]
[366812778,1750467105445,-1389.72,0.00027945,4]
[366812779,1750467105454,-227.7795231,0.00027945,4]
[366812780,1750467105464,-173.56306683,0.00027945,4]
[366812781,1750467105475,-490.0,0.00027945,4]
[366812782,1750467105485,-490.0,0.00027945,4]
[366812783,1750467105494,-490.0,0.00027945,4]
[366812784,1750467105504,-778.17,0.00027945,4]
[366812785,1750467105514,-1748.79,0.00027945,4]
[366812786,1750467105524,-490.0,0.00027945,4]
[366812787,1750467105534,-490.0,0.00027945,4]
[366812788,1750467105544,-567.41,0.00027945,4]
[366812789,1750467105554,-490.0,0.00027945,4]
[366812790,1750467105564,-1625.6,0.00027945,4]
[366812791,1750467105574,-490.0,0.00027945,4]
[366812792,1750467105584,-490.0,0.00027945,4]
[366812793,1750467105593,-490.0,0.00027945,4]
[366812794,1750467105603,-513.0,0.00027945,4]
[366812795,1750467105613,-875.48,0.00027945,4]
[366812796,1750467105624,-2895.02,0.00027945,4]
[366812797,1750467105634,-490.0,0.00027945,4]
[366812798,1750467105644,-490.0,0.00027945,4]
[366812799,1750467105654,-1070.55,0.00027945,4]
[366812800,1750467105663,-490.0,0.00027945,4]
[366812801,1750467105674,-490.0,0.00027945,4]
[366812802,1750467105683,-490.0,0.00027945,4]
[366812803,1750467105694,-313.98307463,0.00027945,4]
[366812804,1750467105704,-1435.61,0.00027945,4]
[366812805,1750467105713,-874.16,0.00027945,4]
[366812806,1750467105724,-630.58,0.00027945,4]
[366812807,1750467105734,-490.0,0.00027945,4]
[366812808,1750467105744,-490.0,0.00027945,4]
[366812809,1750467105754,-2562.11,0.00027945,2]
[366812810,1750467105765,-490.0,0.00027945,4]
[366812811,1750467105774,-490.0,0.00027945,4]
[366812812,1750467105784,-490.0,0.00027945,4]
[366812813,1750467105794,-490.0,0.00027945,4]
[366812814,1750467105804,-1288.18,0.00027945,4]
[366812815,1750467105815,-490.0,0.00027945,4]
[366812816,1750467105825,-490.0,0.00027945,4]
[366812817,1750467105834,-490.0,0.00027945,4]
[366812818,1750467105846,-817.53,0.00027945,4]
[366812819,1750467105856,-490.0,0.00027945,4]
[366812820,1750467105866,-490.0,0.00027945,4]
[366812821,1750467105876,-1310.38,0.00027945,2]
[366812822,1750467105886,-1069.86,0.00027945,4]
[366812823,1750467105896,-490.0,0.00027945,4]
[366812824,1750467105905,-490.0,0.00027945,4]
[366812825,1750467105915,-490.0,0.00027945,4]
[366812826,1750467105926,-490.0,0.00027945,4]
[366812827,1750467105936,-525.89,0.00027945,4]
[366812828,1750467105946,-622.86,0.00027945,4]
[366812829,1750467105959,-800.28,0.00027945,4]
[366812830,1750467105969,-490.0,0.00027945,4]
[366812831,1750467105978,-187.3,0.00027946,2]
[366812832,1750467105988,-700.0,0.00028,4]
[366812833,1750467105998,-1227.77947601,0.00028,14]
[366812834,1750467106009,-278.71,0.00028,2]
[366812835,1750467106019,-12853.64866578,0.00028,2]
[366812836,1750467106029,-257.07297332,0.00028,2]
[366812837,1750467106039,-45695.01379301,0.00028,2]
[366812838,1750467106049,-1500.0,0.00028,2]
[366812839,1750467106059,-1452.68655747,0.00028038,18]
[366812840,1750467106068,-168.3888056,0.00028096,2]
[366812841,1750467106079,-745.65223616,0.00028096,2]
[366812842,1750467106090,-231.28369723,0.00028096,2]
[366812843,1750467106099,-150.0,0.00028118,2]
[366812844,1750467106109,-168.0,0.00028135,2]
[366812845,1750467106118,-152.0,0.00028153,13]
[366812846,1750467106128,-220.87558894,0.00028153,5]
[366812847,1750467106138,-2351.0,0.00028211,2]
[366812848,1750467106149,-151.0,0.00028219,7]
[366812849,1750467106158,-490.0,0.00028219,4]
[366812850,1750467106168,-490.0,0.00028219,4]
[366812851,1750467106178,-490.0,0.00028219,4]
[366812852,1750467106188,-490.0,0.00028219,4]
[366812853,1750467106198,-499.03,0.00028219,4]
[366812854,1750467106209,-490.0,0.00028219,4]
[366812855,1750467106219,-318.06,0.00028219,4]
[366812856,1750467106229,-490.0,0.00028219,4]
[366812857,1750467106240,-490.0,0.00028219,4]
[366812858,1750467106250,-490.0,0.00028219,4]
[366812859,1750467106259,-490.0,0.00028219,4]
[366812860,1750467106269,-640.8,0.00028219,4]
[366812861,1750467106279,-490.0,0.00028219,4]
[366812862,1750467106291,-466.6414855,0.00028219,4]
[366812863,1750467106307,-490.0,0.00028219,4]
[366812864,1750467106317,-991.7,0.00028219,4]
[366812865,1750467106327,-366.54205374,0.00028219,4]
[366812866,1750467106340,-490.0,0.00028219,4]
[366812867,1750467106350,-506.13,0.00028219,4]
[366812868,1750467106360,-490.0,0.00028219,4]
[366812869,1750467106371,-490.0,0.00028219,4]
[366812870,1750467106381,-490.0,0.00028219,4]
[366812871,1750467106392,-490.0,0.00028219,4]